bitfinex/quotes_ETHUSD_20250319
["timestamp","ask_amount","ask_price","bid_price","bid_amount"]
[1742387769197,4.63590146,2011.6,2011.4,4.97163]
[1742387769704,4.63590146,2011.6,2011.3,4.97182]
[1742387769937,4.63590146,2011.4,2011.2,2.6213125]
[1742387770336,4.63590146,2011.4,2011.2,7.5932625]
[1742387770542,4.63590146,2011.4,2011.2,12.5652625]
[1742387770764,4.63590146,2011.4,2011.2,12.5653025]
[1742387770965,4.63590146,2011.4,2011.2,7.5932625]
[1742387771262,4.63590146,2011.4,2011.3,4.9719]
[1742387771456,4.63590146,2011.6,2011.4,4.97149]
[1742387771651,4.63590146,2011.6,2011.2,7.5932325]
[1742387771867,4.63590146,2011.6,2011.4,4.97161]
[1742387772149,4.63590146,2011.6,2011.2,7.5933825]
[1742387772366,4.63590146,2011.4,2011.3,4.97183]
[1742387772539,5.67746461,2011.6,2011.3,4.97183]
[1742387772744,4.63590146,2011.4,2011.3,4.97183]
[1742387773134,4.63590146,2011.4,2011.2,2.6213125]
[1742387773676,10.36034146,2011.4,2011.2,2.6213125]
[1742387773873,6.00793415,2011.3,2011.2,2.6213125]
[1742387774379,14.43993415,2011.3,2011.2,2.6213125]
[1742387774677,14.98993415,2011.3,2011.2,2.6213125]
[1742387774875,21.89863415,2011.3,2011.2,2.6213125]
[1742387775650,39.08563415,2011.3,2011.2,2.6213125]
[1742387776248,39.08563415,2011.3,2011.2,2.2278309]
[1742387777659,33.10363415,2011.3,2011.2,2.2278309]
[1742387777879,38.53563415,2011.3,2011.2,2.2278309]
[1742387778687,39.4569716,2011.3,2011.2,2.2278309]
[1742387779277,4.97329,2010.8,2010.4,0.7985]
[1742387779478,4.63590146,2010.6,2010.4,0.7985]
[1742387779847,4.63590146,2010.6,2010.4,5.7726]
[1742387780046,4.63590146,2010.8,2010.5,4.97388]
[1742387780248,4.63590146,2010.8,2010.5,4.97378]
[1742387780677,4.63590146,2010.8,2010.4,6.847276]
[1742387780678,4.63590146,2010.8,2010.4,5.77253]
[1742387780881,4.63590146,2010.6,2010.4,5.7725]
[1742387781486,4.63590146,2010.6,2010.4,10.7465]
[1742387781685,4.63590146,2010.7,2010.4,4.97391]
[1742387781849,4.63590146,2010.7,2010.5,4.97387]
[1742387782880,4.63590146,2010.7,2010.4,4.97391]
[1742387783456,4.63590146,2010.7,2010.4,9.94785]
[1742387783654,5.93431215,2010.7,2010.1,3.7886]
[1742387783870,4.63590146,2010.5,2010.2,4.97447]
[1742387784088,4.97364,2010.6,2010.0,0.07976227]
[1742387784089,9.61029146,2010.3,2010.0,0.07976227]
[1742387784288,4.63590146,2010.2,2010.0,5.05488227]
[1742387784487,4.63590146,2010.4,2010.1,9.94944]
[1742387784696,4.63590146,2010.4,2010.0,0.07976227]
[1742387784697,4.63590146,2010.2,2010.0,0.07976227]
[1742387785464,4.97487,2010.1,2010.0,0.07976227]
[1742387785999,4.63590146,2010.2,2010.0,5.05484227]
[1742387786203,0.8159,2010.4,2010.1,4.97476]
[1742387786362,4.63590146,2010.2,2010.0,0.07976227]
[1742387786562,4.97487,2010.1,2010.0,0.07976227]
[1742387786794,7.97487,2010.1,2010.0,0.07976227]
[1742387786996,4.97487,2010.1,2010.0,0.07976227]
[1742387787399,9.61069146,2010.2,2010.0,0.07976227]
[1742387787693,15.96305815,2010.1,2010.0,0.07976227]
[1742387789473,20.59895961,2010.1,2010.0,0.07976227]
[1742387789677,1.3028,2009.3,2008.0,0.8278]
[1742387789879,1.3028,2009.3,2008.0,6.78714555]
[1742387789880,4.63590146,2008.5,2008.0,6.78714555]
[1742387790172,4.63590146,2008.5,2008.2,4.97954]
[1742387790372,5.73107,2008.8,2008.0,5.80771]
[1742387790373,4.63590146,2008.3,2008.0,5.80771]
[1742387790589,4.63590146,2008.3,2008.0,0.8278]
[1742387790974,4.63590146,2008.3,2008.0,5.80782]
[1742387791174,4.63590146,2008.1,2007.8,4.98052]
[1742387791393,4.63590146,2007.9,2007.6,4.98091]
[1742387791722,4.63590146,2007.9,2007.7,4.98069]
[1742387791899,4.63590146,2007.9,2007.5,4.98121]
[1742387792082,0.7745,2008.2,2007.5,1.071627]
[1742387792283,4.63590146,2008.4,2008.2,4.97955]
[1742387792485,4.63590146,2008.5,2008.4,4.97908]
[1742387792792,4.63590146,2008.5,2008.3,4.97922]
[1742387792995,5.38970146,2008.8,2008.0,5.433]
[1742387793166,4.63590146,2008.4,2008.2,4.97949]
[1742387793367,4.63590146,2008.4,2007.8,7.98036]
[1742387793368,4.97945,2008.3,2007.7,4.98072]
[1742387793676,4.63590146,2007.9,2007.5,4.98121]
[1742387793866,4.97993,2008.1,2007.5,4.98131]
[1742387793867,4.63590146,2007.7,2007.5,4.98131]
[1742387794067,4.63590146,2007.7,2007.6,4.98107]
[1742387794267,4.63590146,2007.9,2007.7,9.96141]
[1742387794500,4.63590146,2007.9,2007.7,4.98067]
[1742387794701,4.63590146,2007.9,2007.6,9.96197]
[1742387794866,4.63590146,2007.9,2007.6,4.98086]
[1742387795073,10.75590146,2008.3,2007.6,4.98091]
[1742387795278,10.75590146,2008.3,2007.9,4.98013]
[1742387795577,10.75590146,2008.3,2008.0,4.98007]
[1742387795578,4.63590146,2008.1,2008.0,4.98007]
[1742387795785,4.778913,2008.0,2007.9,4.98026]
[1742387796011,4.63590146,2008.1,2007.8,9.96094]
[1742387796180,4.63590146,2008.1,2007.8,4.98039]
[1742387796378,4.63590146,2008.1,2007.8,4.98043]
[1742387796577,4.63590146,2008.1,2007.0,8.90332805]
[1742387796578,4.63590146,2007.9,2007.7,4.98068]
[1742387796983,4.63590146,2007.9,2007.8,4.98057]
[1742387797292,4.63590146,2008.1,2007.9,4.98022]
[1742387797793,4.63590146,2008.1,2007.9,4.98021]
[1742387797997,4.63590146,2008.1,2007.9,4.9802]
[1742387798196,6.12,2008.3,2008.1,4.97967]
[1742387798388,10.75590146,2008.4,2008.1,4.97967]
[1742387798588,10.75590146,2008.4,2008.1,9.95932]
[1742387798887,10.75590146,2008.4,2008.1,4.97968]
[1742387799080,4.63590146,2008.2,2007.8,0.8298]
[1742387799282,4.63590146,2008.0,2007.5,5.81063]
[1742387799511,4.63590146,2008.0,2007.6,4.98096]
[1742387799715,4.63590146,2008.0,2007.7,4.98069]
[1742387799991,7.00853215,2008.2,2007.8,4.98049]
[1742387800217,4.63590146,2008.1,2007.8,4.98041]
[1742387800424,4.63590146,2007.9,2007.7,4.98074]
[1742387800820,4.63590146,2007.9,2007.6,4.98096]
[1742387801060,5.80034482,2008.1,2007.8,4.98047]
[1742387801235,4.63590146,2008.1,2007.9,4.98009]
[1742387801444,4.63590146,2008.1,2007.8,9.96097]
[1742387801636,4.63590146,2008.1,2007.9,4.98018]
[1742387801936,4.63590146,2008.1,2007.8,4.9804]
[1742387802428,4.63590146,2008.1,2007.6,4.98103]
[1742387802756,6.29828982,2008.1,2007.7,4.98062]
[1742387802959,6.29828982,2008.1,2007.5,0.8294]
[1742387802960,4.63590146,2008.1,2007.9,9.96043]
[1742387803266,5.435,2008.2,2008.0,4.98005]
[1742387803433,4.63590146,2008.3,2008.0,9.95996]
[1742387803616,4.63590146,2008.3,2008.0,9.95983]
[1742387803817,10.75590146,2008.4,2008.0,0.8284]
[1742387804025,4.63590146,2008.2,2007.8,4.98048]
[1742387804329,4.63590146,2008.2,2007.5,0.8284]
[1742387804330,9.61552146,2008.2,2007.7,4.98079]
[1742387804535,9.61650146,2007.8,2007.2,4.982]
[1742387804850,4.63590146,2007.6,2007.2,4.98192]
[1742387805017,1.03914015,2007.7,2006.9,5.811]
[1742387805018,1.03914015,2007.7,2007.4,4.98148]
[1742387805222,0.7749,2007.9,2007.5,4.98115]
[1742387805422,4.63590146,2007.8,2007.4,4.9814]
[1742387805875,4.63590146,2007.8,2007.1,5.1035925]
[1742387805876,0.7769,2007.6,2007.1,0.1213125]
[1742387806018,0.7769,2007.2,2007.1,0.1213125]
[1742387806220,10.75590146,2007.5,2007.1,5.1035325]
[1742387806524,10.75590146,2007.5,2007.1,0.1213125]
[1742387806721,10.75590146,2007.5,2007.3,4.98179]
[1742387806722,6.12,2007.5,2007.3,4.98179]
[1742387806922,6.12,2007.5,2007.4,4.98156]
[1742387807255,10.75590146,2007.5,2007.1,0.1213125]
[1742387807458,6.12,2007.5,2007.4,4.98156]
[1742387807655,4.63590146,2007.8,2007.6,4.98096]
[1742387807956,5.43590146,2008.0,2007.7,4.98072]
[1742387808156,9.65475461,2008.0,2007.6,4.98092]
[1742387808454,4.63590146,2007.8,2007.6,4.98092]
[1742387808658,4.63590146,2007.8,2007.7,4.98082]
[1742387808865,9.61660146,2007.8,2007.3,4.98173]
[1742387809021,4.63590146,2007.6,2007.3,4.98173]
[1742387809224,4.63590146,2007.6,2007.1,5.5573125]
[1742387809225,4.63590146,2007.4,2007.1,0.1213125]
[1742387809422,5.59756161,2007.6,2007.3,4.98181]
[1742387809651,4.63590146,2008.1,2007.6,0.7569]
[1742387809852,6.12,2008.6,2008.1,4.97974]
[1742387810017,6.12,2008.6,2008.0,4.97984]
[1742387810018,11.87791,2008.6,2008.0,4.97984]
[1742387810245,6.8993,2008.6,2008.0,4.98004]
[1742387810440,4.97932,2008.4,2007.9,4.98031]
[1742387810685,0.497932,2008.3,2007.9,4.98019]
[1742387810987,0.497932,2008.3,2008.0,4.97983]
[1742387810988,5.13383346,2008.3,2008.0,4.97983]
[1742387811189,4.63590146,2008.1,2007.9,4.98022]
[1742387811482,4.63590146,2008.1,2007.8,4.98045]
[1742387811670,4.63590146,2008.3,2008.1,4.97974]
[1742387811879,4.63590146,2008.4,2008.2,4.97958]
[1742387812186,6.8993,2008.6,2008.3,9.9585]
[1742387812187,10.75590146,2008.6,2008.3,9.9585]
[1742387812390,10.75590146,2008.6,2008.4,9.95791]
[1742387812596,21.85390146,2008.8,2008.5,9.95751]
[1742387812749,4.63590146,2008.9,2008.7,4.97814]
[1742387812949,11.556,2009.1,2008.1,5.75931]
[1742387812950,6.12,2009.1,2008.9,4.97776]
[1742387813163,11.57680146,2009.2,2008.8,9.95606]
[1742387813392,0.8014,2009.5,2009.2,4.97699]
[1742387813588,9.61270146,2009.4,2008.8,5.436]
[1742387813894,4.63590146,2009.0,2008.7,0.7979]
[1742387814096,4.63590146,2009.0,2008.7,4.97825]
[1742387814297,4.63590146,2009.0,2008.8,4.97798]
[1742387814453,4.63590146,2009.0,2008.9,4.97784]
[1742387814650,4.63590146,2009.2,2009.0,4.97754]
[1742387814879,0.66289088,2009.7,2009.1,5.73403]
[1742387815062,4.97598,2009.7,2009.2,4.97693]
[1742387815272,10.75590146,2009.8,2009.2,4.97693]
[1742387815494,4.63590146,2009.6,2009.2,4.97693]
[1742387815794,4.63590146,2009.6,2009.3,4.97682]
[1742387815961,6.20909161,2009.6,2009.2,4.97693]
[1742387816164,6.20909161,2009.6,2009.3,4.97683]
[1742387816362,10.75590146,2009.8,2009.2,4.9771]
[1742387816575,6.12,2009.8,2009.2,10.41305]
[1742387816776,15.73156146,2009.8,2009.2,10.41296]
[1742387816978,10.75590146,2009.8,2009.4,4.97641]
[1742387817177,10.75590146,2009.8,2009.5,4.97622]
[1742387817383,1.07559015,2009.7,2009.5,4.97622]
[1742387817591,6.12,2009.8,2009.7,4.97586]
[1742387817792,10.75590146,2010.0,2009.8,4.97543]
[1742387817954,6.12,2010.0,2009.9,4.97537]
[1742387819392,10.75590146,2010.0,2009.6,5.435]
[1742387819566,10.75590146,2010.0,2009.7,4.97568]
[1742387819771,1.57307915,2009.9,2009.7,4.97568]
[1742387820099,11.90681,2010.5,2009.8,4.97561]
[1742387820298,4.63590146,2010.3,2009.5,4.97636]
[1742387820597,11.56880146,2010.5,2009.8,4.97541]
[1742387820757,6.9329,2010.5,2010.4,4.97413]
[1742387820959,6.12,2010.5,2010.4,4.97413]
[1742387821172,4.97413,2010.4,2009.6,0.7995]
[1742387821369,9.61053146,2010.2,2009.8,4.97554]
[1742387821559,4.63590146,2010.2,2009.9,4.97513]
[1742387821788,0.7967,2010.3,2010.2,4.97462]
[1742387821958,17.84786727,2010.5,2010.3,4.97415]
[1742387822162,7.73796581,2010.5,2010.4,4.97413]
[1742387822697,12.37386727,2010.5,2010.3,4.97424]
[1742387822888,12.37386727,2010.5,2010.3,4.97423]
[1742387823091,1.31287673,2010.4,2010.1,4.97484]
[1742387823390,4.63590146,2010.3,2010.0,4.97509]
[1742387823575,4.63590146,2010.3,2010.0,9.95006]
[1742387823763,4.63590146,2010.3,2009.3,5.98267915]
[1742387823764,4.63590146,2010.1,2009.8,4.97543]
[1742387823964,2.00570715,2010.1,2010.0,4.97512]
[1742387824168,9.61053146,2010.2,2009.8,4.97558]
[1742387824382,9.61053146,2010.2,2009.8,9.95105]
[1742387824581,9.61053146,2010.2,2009.9,4.97534]
[1742387825403,4.63590146,2010.0,2009.8,4.97547]
[1742387825701,4.63590146,2010.0,2009.7,4.97576]
[1742387825865,4.63590146,2010.0,2009.6,4.97608]
[1742387825866,6.17156261,2010.0,2009.6,4.97608]
[1742387826065,4.97544,2009.9,2009.5,4.97623]
[1742387826279,4.63590146,2009.8,2009.3,5.78554]
[1742387826591,4.97516,2010.0,2009.8,4.9756]
[1742387826592,4.63590146,2010.0,2009.8,4.9756]
[1742387826923,8.795951,2009.8,2009.4,4.97651]
[1742387827197,4.97601,2009.7,2009.3,4.97673]
[1742387827405,0.96119115,2009.6,2009.3,4.97667]
[1742387827602,4.97675,2009.4,2009.1,4.97718]
[1742387827903,9.61265146,2009.4,2009.0,9.95498]
[1742387828101,9.61265146,2009.4,2009.0,4.9774]
[1742387828102,9.61264146,2009.4,2009.0,4.9774]
[1742387828397,1.68568326,2009.4,2009.2,9.9539]
[1742387828601,5.473,2009.5,2009.3,4.97685]
[1742387829009,5.473,2009.5,2009.3,4.97674]
[1742387829173,5.473,2009.5,2009.2,4.97707]
[1742387829374,5.473,2009.5,2009.2,9.95409]
[1742387829563,5.473,2009.5,2009.2,4.97702]
[1742387829765,7.15862726,2009.5,2009.3,4.97684]
[1742387829967,7.15862726,2009.5,2009.4,4.9766]
[1742387829968,5.473,2009.5,2009.4,4.9766]
[1742387830904,5.473,2009.5,2009.3,4.97675]
[1742387831113,5.473,2009.5,2009.3,9.95353]
[1742387831270,6.40709261,2009.6,2009.4,4.9766]
[1742387831473,6.40709261,2009.6,2009.5,4.97636]
[1742387831667,6.40709261,2009.6,2009.4,4.97647]
[1742387831668,18.0055,2009.9,2009.4,4.9766]
[1742387831873,17.206,2009.9,2009.8,4.97561]
[1742387832083,17.206,2009.9,2009.6,4.9761]
[1742387832084,6.777345,2009.7,2009.6,4.9761]
[1742387832318,21.84190146,2009.9,2009.6,9.95213]
[1742387832615,26.17811161,2009.9,2009.7,9.95158]
[1742387832768,26.17811161,2009.9,2009.8,4.97561]
[1742387832972,17.206,2009.9,2009.8,4.97561]
[1742387833206,11.57,2010.0,2009.8,4.97561]
[1742387833377,6.12,2010.0,2009.9,4.97537]
[1742387833578,6.12,2010.0,2009.8,4.97561]
[1742387833579,6.9195,2010.2,2010.1,4.97487]
[1742387834001,6.9195,2010.2,2010.0,4.9751]
[1742387834986,4.97546,2009.9,2009.5,4.9762]
[1742387835309,4.63590146,2009.8,2009.6,4.97608]
[1742387836279,4.63590146,2009.8,2009.2,0.7867]
[1742387836280,0.7853,2009.7,2009.2,0.7867]
[1742387836483,5.76125,2009.7,2009.3,4.97667]
[1742387836692,0.7853,2009.7,2009.1,5.433]
[1742387836891,3.0,2010.1,2009.7,4.9757]
[1742387836892,0.7853,2010.0,2009.7,4.9757]
[1742387837092,0.7853,2010.0,2009.8,4.97549]
[1742387837293,0.7853,2010.0,2009.9,4.97537]
[1742387837491,4.63590146,2009.9,2009.3,4.97672]
[1742387837749,4.63590146,2009.5,2009.2,4.97696]
[1742387837921,4.63590146,2009.3,2009.0,4.97752]
[1742387838083,4.63590146,2009.3,2009.1,4.97724]
[1742387838283,10.65452561,2009.5,2009.1,4.97718]
[1742387838515,4.9767,2009.4,2009.1,4.97718]
[1742387838921,15.63103561,2009.5,2009.1,4.97718]
[1742387839130,1.56310356,2009.4,2009.1,4.97718]
[1742387839298,4.63590146,2009.5,2009.2,4.977]
[1742387840022,4.97661,2009.4,2009.1,4.97732]
[1742387840332,4.9772,2009.2,2008.8,4.97795]
[1742387840497,4.97636,2009.5,2008.6,4.97857]
[1742387840707,9.61261146,2009.4,2009.0,4.97742]
[1742387840896,5.93826115,2009.3,2008.9,4.97781]
[1742387841094,5.93826115,2009.3,2008.9,4.97772]
[1742387841095,5.38930146,2009.2,2008.9,4.97772]
[1742387841409,10.36661146,2009.2,2008.8,4.97805]
[1742387841619,4.97739,2009.1,2008.8,4.97805]
[1742387841814,15.34387146,2009.2,2008.8,9.95596]
[1742387842020,11.99707472,2009.2,2008.8,4.97791]
[1742387842200,3.579401,2008.8,2008.5,4.97865]
[1742387842391,4.63590146,2008.8,2008.5,4.97865]
[1742387842586,4.97836,2008.7,2008.4,4.97906]
[1742387842835,4.63590146,2008.8,2008.3,6.1913]
[1742387843137,4.97785,2008.9,2008.6,4.97845]
[1742387843338,4.97845,2008.6,2008.5,4.97883]
[1742387843634,6.43698615,2008.9,2008.6,4.97849]
[1742387843801,6.43698615,2008.9,2008.5,4.9787]
[1742387844008,4.9781,2008.8,2008.5,4.9787]
[1742387844338,4.9781,2008.8,2008.4,4.97906]
[1742387844339,0.8245,2008.7,2008.4,4.97906]
[1742387844502,0.8245,2008.7,2008.4,4.979]
[1742387844843,0.8245,2008.7,2008.4,9.95797]
[1742387845138,5.80285,2008.7,2008.3,9.95851]
[1742387845647,0.8245,2008.7,2008.4,4.97892]
[1742387845929,5.80299,2008.7,2008.3,4.97925]
[1742387846114,5.80299,2008.7,2008.3,4.97918]
[1742387846317,9.61465146,2008.6,2008.1,4.97967]
[1742387846521,4.97902,2008.5,2008.1,4.97979]
[1742387846692,4.97921,2008.4,2008.0,5.76258]
[1742387846889,4.97921,2008.4,2008.0,4.97998]
[1742387847232,4.97937,2008.3,2008.0,4.97998]
[1742387847400,4.97937,2008.3,2007.9,4.98028]
[1742387847401,0.8109,2008.2,2007.9,4.98028]
[1742387847601,7.70429715,2008.4,2007.7,4.98082]
[1742387847791,7.70429715,2008.4,2008.2,4.97957]
[1742387848194,17.31941861,2008.4,2008.0,4.97995]
[1742387848418,12.34019861,2008.4,2008.1,4.97968]
[1742387848615,12.34019861,2008.4,2008.1,9.95939]
[1742387848807,12.34019861,2008.4,2008.1,4.97968]
[1742387849001,12.34019861,2008.4,2008.1,9.95936]
[1742387849202,6.2449,2008.4,2008.2,4.97949]
[1742387849408,4.97949,2008.2,2008.1,4.97969]
[1742387849607,5.434,2008.4,2008.2,4.97947]
[1742387849818,5.434,2008.4,2008.2,4.97945]
[1742387850030,10.43289146,2008.6,2008.2,4.97957]
[1742387850268,10.43289146,2008.6,2008.1,0.8153]
[1742387850269,7.90851887,2008.6,2008.0,4.98004]
[1742387850544,9.61513146,2008.4,2008.0,4.98004]
[1742387850741,4.97934,2008.3,2007.9,4.98032]
[1742387851031,4.97934,2008.3,2008.0,4.98005]
[1742387851240,9.61500146,2008.4,2008.0,4.97993]
[1742387851397,12.01364835,2008.4,2008.0,9.95986]
[1742387851597,4.97942,2008.3,2008.0,4.97993]
[1742387851899,12.01364835,2008.4,2008.0,4.97993]
[1742387851900,12.01365835,2008.4,2008.0,4.97993]
[1742387852100,13.02057974,2008.4,2008.1,4.97981]
[1742387852414,17.44865835,2008.4,2008.0,4.97991]
[1742387852610,5.435,2008.4,2008.3,4.97933]
[1742387852834,6.12,2008.5,2008.3,4.97933]
[1742387853158,6.12,2008.5,2008.4,4.97908]
[1742387853365,4.97908,2008.4,2008.3,4.97926]
[1742387853526,6.12,2008.5,2008.4,4.97908]
[1742387853922,6.12,2008.5,2008.2,4.9795]
[1742387854118,17.85181361,2008.5,2008.1,9.95931]
[1742387854859,5.78633,2008.4,2008.0,9.95983]
[1742387855155,5.78633,2008.4,2008.1,4.97975]
[1742387855373,0.8072,2008.4,2008.1,9.95946]
[1742387855573,0.8072,2008.4,2008.2,4.97953]
[1742387855775,12.87286361,2008.5,2008.2,4.97942]
[1742387855987,12.87286361,2008.5,2007.9,5.81341]
[1742387855988,12.87286361,2008.5,2007.9,0.8331]
[1742387856290,12.87286361,2008.5,2008.1,9.95935]
[1742387856291,17.85183361,2008.5,2008.1,9.95935]
[1742387856448,17.85183361,2008.5,2008.1,9.95938]
[1742387856648,8.23696215,2008.5,2008.2,4.97954]
[1742387856843,8.23696215,2008.5,2008.2,9.95903]
[1742387857082,8.23696215,2008.5,2008.3,4.97929]
[1742387857278,8.23696215,2008.5,2008.2,4.97949]
[1742387857985,8.23696215,2008.5,2008.2,9.95896]
[1742387858290,6.12,2008.5,2008.3,9.95841]
[1742387858462,6.12,2008.5,2008.3,4.9792]
[1742387858781,6.12,2008.5,2008.3,4.97919]
[1742387858962,6.12,2008.5,2008.3,9.95841]
[1742387859279,6.12,2008.5,2008.2,9.95898]
[1742387859577,6.12,2008.5,2008.2,4.97945]
[1742387859783,6.12,2008.5,2008.3,4.97932]
[1742387859987,6.12,2008.5,2008.3,9.95848]
[1742387860151,6.12,2008.5,2008.3,9.95836]
[1742387860555,6.12,2008.5,2008.4,4.97908]
[1742387860978,6.12,2008.5,2008.3,4.97916]
[1742387860979,4.97908,2008.4,2008.3,4.97916]
[1742387861281,9.61426146,2008.7,2008.4,4.979]
[1742387861456,4.63590146,2008.7,2008.0,4.98007]
[1742387861657,6.8998,2008.8,2008.4,5.75398]
[1742387861878,6.12,2008.8,2008.6,4.97846]
[1742387862083,11.555,2008.9,2008.6,4.97846]
[1742387862303,1.32616735,2009.3,2008.6,10.41353]
[1742387862460,1.32616735,2009.3,2009.1,4.97725]
[1742387862461,0.8075,2009.3,2009.1,4.97725]
[1742387862666,0.8075,2009.3,2009.0,4.97756]
[1742387862893,9.61310146,2009.2,2008.8,4.97797]
[1742387863095,4.63590146,2009.2,2008.8,4.97793]
[1742387863311,4.63590146,2009.2,2008.7,6.2061]
[1742387863514,4.9774,2009.1,2008.6,10.41357]
[1742387863713,0.96133015,2009.0,2008.7,4.97824]
[1742387864242,0.96133015,2009.0,2008.8,4.97802]
[1742387864540,0.96133015,2009.0,2008.7,4.97821]
[1742387864748,0.96133015,2009.0,2008.7,9.9564]
[1742387864911,0.96133015,2009.0,2008.7,9.95645]
[1742387865111,4.97837,2008.7,2008.3,4.97924]
[1742387865410,4.63590146,2008.6,2008.3,4.97924]
[1742387865617,4.63590146,2008.7,2008.4,4.97895]
[1742387865820,4.63590146,2008.7,2008.4,4.97905]
[1742387866022,6.84473741,2008.7,2008.4,4.97897]
[1742387866439,0.7826,2008.8,2008.6,4.9785]
[1742387866735,0.7826,2008.8,2008.5,4.97869]
[1742387866939,0.7826,2008.8,2008.6,4.97854]
[1742387867103,11.34976948,2008.9,2008.7,4.97821]
[1742387867104,6.71386802,2008.9,2008.7,4.97821]
[1742387867612,15.73383146,2008.9,2008.5,4.97866]
[1742387867811,15.73383146,2008.9,2008.6,4.97856]
[1742387868140,4.97856,2008.6,2008.3,4.97924]
[1742387868301,9.61432146,2008.7,2008.3,4.97923]
[1742387868503,4.63590146,2008.7,2008.4,4.97899]
[1742387868838,6.28552261,2008.7,2008.4,4.97899]
[1742387869538,5.76376,2008.3,2007.8,4.98036]
[1742387869740,9.61555146,2008.2,2007.5,0.7857]
[1742387869943,0.7844,2008.3,2007.7,4.98074]
[1742387869944,4.63590146,2008.0,2007.7,4.98074]
[1742387870098,4.63590146,2008.0,2007.6,4.98084]
[1742387870304,4.98041,2007.9,2007.6,4.98084]
[1742387870504,9.9970024,2008.0,2007.7,4.98081]
[1742387870846,9.9970024,2008.0,2007.6,4.98084]
[1742387871009,4.63590146,2008.0,2007.7,4.98071]
[1742387871343,0.8116,2007.9,2007.6,9.96197]
[1742387871503,0.8116,2007.9,2007.7,4.98082]
[1742387871703,0.8116,2007.9,2007.6,4.98093]
[1742387874043,5.7921,2007.9,2007.4,4.98149]
[1742387874231,5.7921,2007.9,2007.5,4.98118]
[1742387874413,7.98295951,2007.9,2007.5,9.96236]
[1742387874741,3.00245951,2007.9,2007.6,4.98105]
[1742387875539,12.96330951,2007.9,2007.5,4.98118]
[1742387875745,4.63590146,2007.8,2007.3,0.7821]
[1742387875948,0.8116,2007.9,2007.6,4.98089]
[1742387876148,0.8116,2007.9,2007.6,9.96181]
[1742387876579,0.8116,2007.9,2007.6,9.96183]
[1742387876730,0.8116,2007.9,2007.6,4.98089]
[1742387876932,5.79195,2007.9,2007.6,4.98089]
[1742387877131,10.77244,2007.9,2007.5,4.98128]
[1742387877336,10.77244,2007.9,2007.3,0.7821]
[1742387877337,2.73449982,2007.9,2007.6,4.98089]
[1742387877571,10.75590146,2008.0,2007.7,9.96138]
[1742387877774,6.12,2008.0,2007.7,4.98066]
[1742387878082,15.73600146,2008.0,2007.7,4.98066]
[1742387878236,15.73603146,2008.0,2007.7,4.98066]
[1742387878437,17.9762434,2008.0,2007.7,4.98066]
[1742387878663,12.9961134,2008.0,2007.7,9.9614]
[1742387878869,12.9961134,2008.0,2007.7,4.98066]
[1742387879066,10.75590146,2008.0,2007.8,4.98038]
[1742387879759,6.12,2008.0,2007.8,5.77898]
[1742387880067,6.12,2008.0,2007.9,4.98032]
[1742387880973,6.12,2008.0,2007.9,10.41632]
[1742387881541,4.63590146,2008.5,2008.3,4.97928]
[1742387882070,4.63590146,2008.5,2008.2,4.9794]
[1742387882373,9.61482146,2008.5,2008.2,4.9794]
[1742387882543,4.63590146,2008.3,2008.2,4.9794]
[1742387885042,4.63590146,2008.3,2008.1,9.95947]
[1742387885242,4.63590146,2008.3,2008.1,4.97968]
[1742387885445,4.63590146,2008.5,2007.9,5.436]
[1742387885646,4.63590146,2008.5,2008.3,4.97926]
[1742387885946,4.63590146,2008.5,2008.3,4.9792]
[1742387886151,4.63590146,2008.5,2008.3,9.9584]
[1742387886351,4.63590146,2008.5,2008.3,4.9792]
[1742387886791,4.63590146,2008.5,2008.3,4.97915]
[1742387886958,17.73873981,2008.6,2008.4,4.97908]
[1742387887157,11.57210146,2008.9,2008.2,0.827]
[1742387887375,10.75590146,2008.9,2008.7,4.97814]
[1742387887550,6.12,2008.9,2008.8,4.97809]
[1742387887757,4.63590146,2008.9,2008.6,4.97849]
[1742387888073,4.63590146,2008.9,2008.7,4.97834]
[1742387888746,11.25186726,2008.9,2008.4,4.97908]
[1742387888950,9.61432146,2008.7,2008.3,5.77972]
[1742387889150,10.38662146,2008.7,2008.3,4.97926]
[1742387889353,4.63590146,2008.5,2008.2,5.435]
[1742387889648,4.63590146,2008.5,2008.3,4.97915]
[1742387889853,10.38656146,2008.7,2008.3,9.95831]
[1742387890183,15.36507146,2008.7,2008.3,4.97915]
[1742387890504,4.63590146,2008.7,2008.4,4.97884]
[1742387890655,9.61428146,2008.7,2008.4,4.97884]
[1742387890849,4.63590146,2008.5,2008.1,0.8004]
[1742387891054,4.63590146,2008.3,2008.1,4.97965]
[1742387891356,10.41937146,2008.5,2008.2,4.97945]
[1742387891583,10.41937146,2008.5,2008.1,4.97965]
[1742387891584,4.63590146,2008.3,2007.9,0.8288]
[1742387891780,4.63590146,2008.3,2007.7,4.98069]
[1742387891781,4.63590146,2008.0,2007.7,4.98069]
[1742387892089,4.63590146,2008.4,2008.0,4.97985]
[1742387892287,4.63590146,2008.4,2008.2,4.9794]
[1742387892496,4.63590146,2008.4,2008.1,4.97978]
[1742387892661,9.61549146,2008.2,2007.8,5.8026]
[1742387892867,10.57704061,2008.2,2007.9,4.98031]
[1742387893064,9.61549146,2008.2,2007.9,4.98031]
[1742387893255,4.63590146,2008.0,2007.7,5.435]
[1742387893450,9.61607146,2008.0,2007.6,4.98103]
[1742387893665,10.42737146,2008.0,2007.6,4.98093]
[1742387893879,4.63590146,2007.8,2007.6,9.96188]
[1742387894078,9.61656146,2007.8,2007.5,4.98129]
[1742387894254,4.63590146,2007.8,2007.5,4.9812]
[1742387894453,4.63590146,2007.8,2007.6,4.98104]
[1742387894768,4.63590146,2007.8,2007.5,9.96242]
[1742387895161,4.63590146,2007.8,2007.5,4.9812]
[1742387895376,9.61653146,2007.8,2007.5,4.98118]
[1742387895581,4.63590146,2007.8,2007.5,4.98118]
[1742387895785,4.63590146,2007.8,2007.6,4.98104]
[1742387895983,4.63590146,2007.8,2007.5,4.98118]